{"text_format":"3","workbook":"xlsx","n_sheets":1,"sheets":["الجدول الزمني السنوي"],"not_rendered":{"defined_names":2},"read":"whole","date_system":"1900"}

{"sheet":"الجدول الزمني السنوي","index":0,"n_rows":140,"n_cols":12,"rows_kept":140,"merged":[[0,1,1,11],[2,6,2,7],[2,8,2,9],[5,1,5,11],[15,3,15,4],[26,3,26,4],[37,3,37,4],[39,1,39,11],[49,3,49,4],[60,3,60,4],[71,3,71,4],[73,1,73,11],[83,3,83,4],[94,3,94,4],[105,3,105,4],[107,1,107,11],[117,3,117,4],[128,3,128,4],[139,3,139,4]]}
[null,"بطاقة الحضور الموظف"]
[]
[null,"اسم الموظف:",null,"البريد الإلكتروني:",null,null,"إجماليات السنة حتى الآن:"]
[null,"المدير:",null,"الهاتف:",null,null,"ساعات العمل العادية:",{"$f":"SUM(C16,C27,C38,C50,C61,C72,C84,C95,C106,C118,C129,C140)","v":0},"ساعات العمل الإضافية:",{"$f":"SUM(F16,F27,F38,F50,F61,F72,F84,F95,F106,F118,F129,F140)","v":0},"الإجمالي:",{"$f":"SUM(H4,J4)","v":0}]
[]
[null,"بطاقة حضور الموظف      يناير وفبراير ومارس: يومية وأسبوعية وشهرية وسنوية"]
[null,"يناير","الأسبوع 1","ساعات العمل الإضافية","الأسبوع 2","ساعات العمل الإضافية ","الأسبوع 3","ساعات العمل الإضافية  ","الأسبوع 4","ساعات العمل الإضافية   ","الأسبوع 5","ساعات العمل الإضافية    "]
[null,"الاثنين"]
[null,"الثلاثاء"]
[null,"الأربعاء"]
[null,"الخميس"]
[null,"الجمعة"]
[null,"السبت"]
[null,"الأحد"]
[null,"إجمالي الساعات الأسبوعية",{"$f":"SUBTOTAL(109,يناير[الأسبوع 1])","v":0},{"$f":"SUBTOTAL(109,يناير[ساعات العمل الإضافية])","v":0},{"$f":"SUBTOTAL(109,يناير[الأسبوع 2])","v":0},{"$f":"SUBTOTAL(109,يناير[[ساعات العمل الإضافية ]])","v":0},{"$f":"SUBTOTAL(109,يناير[الأسبوع 3])","v":0},{"$f":"SUBTOTAL(109,يناير[[ساعات العمل الإضافية  ]])","v":0},{"$f":"SUBTOTAL(109,يناير[الأسبوع 4])","v":0},{"$f":"SUBTOTAL(109,يناير[[ساعات العمل الإضافية   ]])","v":0},{"$f":"SUBTOTAL(109,يناير[الأسبوع 5])","v":0},{"$f":"SUBTOTAL(109,يناير[[ساعات العمل الإضافية    ]])","v":0}]
[null,"إجمالي يناير: ساعات العمل العادية",{"$f":"SUM(يناير[[#Totals],[الأسبوع 1]],يناير[[#Totals],[الأسبوع 2]],يناير[[#Totals],[الأسبوع 3]],يناير[[#Totals],[الأسبوع 4]],يناير[[#Totals],[الأسبوع 5]])","v":0},"إجمالي يناير: ساعات العمل الإضافية",null,{"$f":"SUM(يناير[[#Totals],[ساعات العمل الإضافية]],يناير[[#Totals],[ساعات العمل الإضافية ]],يناير[[#Totals],[ساعات العمل الإضافية  ]],يناير[[#Totals],[ساعات العمل الإضافية   ]],يناير[[#Totals],[ساعات العمل الإضافية    ]])","v":0}]
[]
[null,"فبراير","الأسبوع 1","ساعات العمل الإضافية","الأسبوع 2","ساعات العمل الإضافية ","الأسبوع 3","ساعات العمل الإضافية  ","الأسبوع 4","ساعات العمل الإضافية   ","الأسبوع 5","ساعات العمل الإضافية    "]
[null,"الاثنين"]
[null,"الثلاثاء"]
[null,"الأربعاء"]
[null,"الخميس"]
[null,"الجمعة"]
[null,"السبت"]
[null,"الأحد"]
[null,"إجمالي الساعات الأسبوعية",{"$f":"SUBTOTAL(109,فبراير[الأسبوع 1])","v":0},{"$f":"SUBTOTAL(109,فبراير[ساعات العمل الإضافية])","v":0},{"$f":"SUBTOTAL(109,فبراير[الأسبوع 2])","v":0},{"$f":"SUBTOTAL(109,فبراير[[ساعات العمل الإضافية ]])","v":0},{"$f":"SUBTOTAL(109,فبراير[الأسبوع 3])","v":0},{"$f":"SUBTOTAL(109,فبراير[[ساعات العمل الإضافية  ]])","v":0},{"$f":"SUBTOTAL(109,فبراير[الأسبوع 4])","v":0},{"$f":"SUBTOTAL(109,فبراير[[ساعات العمل الإضافية   ]])","v":0},{"$f":"SUBTOTAL(109,فبراير[الأسبوع 5])","v":0},{"$f":"SUBTOTAL(109,فبراير[[ساعات العمل الإضافية    ]])","v":0}]
[null,"إجمالي فبراير: ساعات العمل العادية",{"$f":"SUM(فبراير[[#Totals],[الأسبوع 1]],فبراير[[#Totals],[الأسبوع 2]],فبراير[[#Totals],[الأسبوع 3]],فبراير[[#Totals],[الأسبوع 4]],فبراير[[#Totals],[الأسبوع 5]])","v":0},"إجمالي.  فبراير: ساعات العمل الإضافية",null,{"$f":"SUM(فبراير[[#Totals],[ساعات العمل الإضافية]],فبراير[[#Totals],[ساعات العمل الإضافية ]],فبراير[[#Totals],[ساعات العمل الإضافية  ]],فبراير[[#Totals],[ساعات العمل الإضافية   ]],فبراير[[#Totals],[ساعات العمل الإضافية    ]])","v":0}]
[]
[null,"مارس","الأسبوع 1","ساعات العمل الإضافية","الأسبوع 2","ساعات العمل الإضافية ","الأسبوع 3","ساعات العمل الإضافية  ","الأسبوع 4","ساعات العمل الإضافية   ","الأسبوع 5","ساعات العمل الإضافية    "]
[null,"الاثنين"]
[null,"الثلاثاء"]
[null,"الأربعاء"]
[null,"الخميس"]
[null,"الجمعة"]
[null,"السبت"]
[null,"الأحد"]
[null,"إجمالي الساعات الأسبوعية",{"$f":"SUBTOTAL(109,مارس[الأسبوع 1])","v":0},{"$f":"SUBTOTAL(109,مارس[ساعات العمل الإضافية])","v":0},{"$f":"SUBTOTAL(109,مارس[الأسبوع 2])","v":0},{"$f":"SUBTOTAL(109,مارس[[ساعات العمل الإضافية ]])","v":0},{"$f":"SUBTOTAL(109,مارس[الأسبوع 3])","v":0},{"$f":"SUBTOTAL(109,مارس[[ساعات العمل الإضافية  ]])","v":0},{"$f":"SUBTOTAL(109,مارس[الأسبوع 4])","v":0},{"$f":"SUBTOTAL(109,مارس[[ساعات العمل الإضافية   ]])","v":0},{"$f":"SUBTOTAL(109,مارس[الأسبوع 5])","v":0},{"$f":"SUBTOTAL(109,مارس[[ساعات العمل الإضافية    ]])","v":0}]
[null,"إجمالي مارس: ساعات العمل العادية",{"$f":"SUM(مارس[[#Totals],[الأسبوع 1]],مارس[[#Totals],[الأسبوع 2]],مارس[[#Totals],[الأسبوع 3]],مارس[[#Totals],[الأسبوع 4]],مارس[[#Totals],[الأسبوع 5]])","v":0},"إجمالي مارس: ساعات العمل الإضافية",null,{"$f":"SUM(مارس[[#Totals],[ساعات العمل الإضافية]],مارس[[#Totals],[ساعات العمل الإضافية ]],مارس[[#Totals],[ساعات العمل الإضافية  ]],مارس[[#Totals],[ساعات العمل الإضافية   ]],مارس[[#Totals],[ساعات العمل الإضافية    ]])","v":0}]
[]
[null,"بطاقة حضور الموظف      أبريل ومايو ويونيو: يومية وأسبوعية وشهرية وسنوية"]
[null,"أبريل","الأسبوع 1","ساعات العمل الإضافية","الأسبوع 2","ساعات العمل الإضافية ","الأسبوع 3","ساعات العمل الإضافية  ","الأسبوع 4","ساعات العمل الإضافية   ","الأسبوع 5","ساعات العمل الإضافية    "]
[null,"الاثنين"]
[null,"الثلاثاء"]
[null,"الأربعاء"]
[null,"الخميس"]
[null,"الجمعة"]
[null,"السبت"]
[null,"الأحد"]
[null,"إجمالي الساعات الأسبوعية",{"$f":"SUBTOTAL(109,أبريل[الأسبوع 1])","v":0},{"$f":"SUBTOTAL(109,أبريل[ساعات العمل الإضافية])","v":0},{"$f":"SUBTOTAL(109,أبريل[الأسبوع 2])","v":0},{"$f":"SUBTOTAL(109,أبريل[[ساعات العمل الإضافية ]])","v":0},{"$f":"SUBTOTAL(109,أبريل[الأسبوع 3])","v":0},{"$f":"SUBTOTAL(109,أبريل[[ساعات العمل الإضافية  ]])","v":0},{"$f":"SUBTOTAL(109,أبريل[الأسبوع 4])","v":0},{"$f":"SUBTOTAL(109,أبريل[[ساعات العمل الإضافية   ]])","v":0},{"$f":"SUBTOTAL(109,أبريل[الأسبوع 5])","v":0},{"$f":"SUBTOTAL(109,أبريل[[ساعات العمل الإضافية    ]])","v":0}]
[null,"إجمالي أبريل: ساعات العمل العادية",{"$f":"SUM(أبريل[[#Totals],[الأسبوع 1]],أبريل[[#Totals],[الأسبوع 2]],أبريل[[#Totals],[الأسبوع 3]],أبريل[[#Totals],[الأسبوع 4]],أبريل[[#Totals],[الأسبوع 5]])","v":0},"إجمالي أبريل: ساعات العمل الإضافية",null,{"$f":"SUM(أبريل[[#Totals],[ساعات العمل الإضافية]],أبريل[[#Totals],[ساعات العمل الإضافية ]],أبريل[[#Totals],[ساعات العمل الإضافية  ]],أبريل[[#Totals],[ساعات العمل الإضافية   ]],أبريل[[#Totals],[ساعات العمل الإضافية    ]])","v":0}]
[]
[null,"مايو","الأسبوع 1","ساعات العمل الإضافية","الأسبوع 2","ساعات العمل الإضافية ","الأسبوع 3","ساعات العمل الإضافية  ","الأسبوع 4","ساعات العمل الإضافية   ","الأسبوع 5","ساعات العمل الإضافية    "]
[null,"الاثنين"]
[null,"الثلاثاء"]
[null,"الأربعاء"]
[null,"الخميس"]
[null,"الجمعة"]
[null,"السبت"]
[null,"الأحد"]
[null,"إجمالي الساعات الأسبوعية",{"$f":"SUBTOTAL(109,مايو[الأسبوع 1])","v":0},{"$f":"SUBTOTAL(109,مايو[ساعات العمل الإضافية])","v":0},{"$f":"SUBTOTAL(109,مايو[الأسبوع 2])","v":0},{"$f":"SUBTOTAL(109,مايو[[ساعات العمل الإضافية ]])","v":0},{"$f":"SUBTOTAL(109,مايو[الأسبوع 3])","v":0},{"$f":"SUBTOTAL(109,مايو[[ساعات العمل الإضافية  ]])","v":0},{"$f":"SUBTOTAL(109,مايو[الأسبوع 4])","v":0},{"$f":"SUBTOTAL(109,مايو[[ساعات العمل الإضافية   ]])","v":0},{"$f":"SUBTOTAL(109,مايو[الأسبوع 5])","v":0},{"$f":"SUBTOTAL(109,مايو[[ساعات العمل الإضافية    ]])","v":0}]
[null,"إجمالي مايو: ساعات العمل العادية",{"$f":"SUM(مايو[[#Totals],[الأسبوع 1]],مايو[[#Totals],[الأسبوع 2]],مايو[[#Totals],[الأسبوع 3]],مايو[[#Totals],[الأسبوع 4]],مايو[[#Totals],[الأسبوع 5]])","v":0},"إجمالي مايو: ساعات العمل الإضافية",null,{"$f":"SUM(مايو[[#Totals],[ساعات العمل الإضافية]],مايو[[#Totals],[ساعات العمل الإضافية ]],مايو[[#Totals],[ساعات العمل الإضافية  ]],مايو[[#Totals],[ساعات العمل الإضافية   ]],مايو[[#Totals],[ساعات العمل الإضافية    ]])","v":0}]
[]
[null,"يونيو","الأسبوع 1","ساعات العمل الإضافية","الأسبوع 2","ساعات العمل الإضافية ","الأسبوع 3","ساعات العمل الإضافية  ","الأسبوع 4","ساعات العمل الإضافية   ","الأسبوع 5","ساعات العمل الإضافية    "]
[null,"الاثنين"]
[null,"الثلاثاء"]
[null,"الأربعاء"]
[null,"الخميس"]
[null,"الجمعة"]
[null,"السبت"]
[null,"الأحد"]
[null,"إجمالي الساعات الأسبوعية",{"$f":"SUBTOTAL(109,يونيو[الأسبوع 1])","v":0},{"$f":"SUBTOTAL(109,يونيو[ساعات العمل الإضافية])","v":0},{"$f":"SUBTOTAL(109,يونيو[الأسبوع 2])","v":0},{"$f":"SUBTOTAL(109,يونيو[[ساعات العمل الإضافية ]])","v":0},{"$f":"SUBTOTAL(109,يونيو[الأسبوع 3])","v":0},{"$f":"SUBTOTAL(109,يونيو[[ساعات العمل الإضافية  ]])","v":0},{"$f":"SUBTOTAL(109,يونيو[الأسبوع 4])","v":0},{"$f":"SUBTOTAL(109,يونيو[[ساعات العمل الإضافية   ]])","v":0},{"$f":"SUBTOTAL(109,يونيو[الأسبوع 5])","v":0},{"$f":"SUBTOTAL(109,يونيو[[ساعات العمل الإضافية    ]])","v":0}]
[null,"إجمالي يونيو: ساعات العمل العادية",{"$f":"SUM(يونيو[[#Totals],[الأسبوع 1]],يونيو[[#Totals],[الأسبوع 2]],يونيو[[#Totals],[الأسبوع 3]],يونيو[[#Totals],[الأسبوع 4]],يونيو[[#Totals],[الأسبوع 5]])","v":0},"إجمالي يونيو: ساعات العمل الإضافية",null,{"$f":"SUM(يونيو[[#Totals],[ساعات العمل الإضافية]],يونيو[[#Totals],[ساعات العمل الإضافية ]],يونيو[[#Totals],[ساعات العمل الإضافية  ]],يونيو[[#Totals],[ساعات العمل الإضافية   ]],يونيو[[#Totals],[ساعات العمل الإضافية    ]])","v":0}]
[]
[null,"بطاقة حضور الموظف      يوليو وأغسطس وسبتمبر: يومية وأسبوعية وشهرية وسنوية"]
[null,"يوليو","الأسبوع 1","ساعات العمل الإضافية","الأسبوع 2","ساعات العمل الإضافية ","الأسبوع 3","ساعات العمل الإضافية  ","الأسبوع 4","ساعات العمل الإضافية   ","الأسبوع 5","ساعات العمل الإضافية    "]
[null,"الاثنين"]
[null,"الثلاثاء"]
[null,"الأربعاء"]
[null,"الخميس"]
[null,"الجمعة"]
[null,"السبت"]
[null,"الأحد"]
[null,"إجمالي الساعات الأسبوعية",{"$f":"SUBTOTAL(109,يوليو[الأسبوع 1])","v":0},{"$f":"SUBTOTAL(109,يوليو[ساعات العمل الإضافية])","v":0},{"$f":"SUBTOTAL(109,يوليو[الأسبوع 2])","v":0},{"$f":"SUBTOTAL(109,يوليو[[ساعات العمل الإضافية ]])","v":0},{"$f":"SUBTOTAL(109,يوليو[الأسبوع 3])","v":0},{"$f":"SUBTOTAL(109,يوليو[[ساعات العمل الإضافية  ]])","v":0},{"$f":"SUBTOTAL(109,يوليو[الأسبوع 4])","v":0},{"$f":"SUBTOTAL(109,يوليو[[ساعات العمل الإضافية   ]])","v":0},{"$f":"SUBTOTAL(109,يوليو[الأسبوع 5])","v":0},{"$f":"SUBTOTAL(109,يوليو[[ساعات العمل الإضافية    ]])","v":0}]
[null,"إجمالي يوليو: ساعات العمل العادية",{"$f":"SUM(يوليو[[#Totals],[الأسبوع 1]],يوليو[[#Totals],[الأسبوع 2]],يوليو[[#Totals],[الأسبوع 3]],يوليو[[#Totals],[الأسبوع 4]],يوليو[[#Totals],[الأسبوع 5]])","v":0},"إجمالي يوليو: ساعات العمل الإضافية",null,{"$f":"SUM(يوليو[[#Totals],[ساعات العمل الإضافية]],يوليو[[#Totals],[ساعات العمل الإضافية ]],يوليو[[#Totals],[ساعات العمل الإضافية  ]],يوليو[[#Totals],[ساعات العمل الإضافية   ]],يوليو[[#Totals],[ساعات العمل الإضافية    ]])","v":0}]
[]
[null,"أغسطس","الأسبوع 1","ساعات العمل الإضافية","الأسبوع 2","ساعات العمل الإضافية ","الأسبوع 3","ساعات العمل الإضافية  ","الأسبوع 4","ساعات العمل الإضافية   ","الأسبوع 5","ساعات العمل الإضافية    "]
[null,"الاثنين"]
[null,"الثلاثاء"]
[null,"الأربعاء"]
[null,"الخميس"]
[null,"الجمعة"]
[null,"السبت"]
[null,"الأحد"]
[null,"إجمالي الساعات الأسبوعية",{"$f":"SUBTOTAL(109,أغسطس[الأسبوع 1])","v":0},{"$f":"SUBTOTAL(109,أغسطس[ساعات العمل الإضافية])","v":0},{"$f":"SUBTOTAL(109,أغسطس[الأسبوع 2])","v":0},{"$f":"SUBTOTAL(109,أغسطس[[ساعات العمل الإضافية ]])","v":0},{"$f":"SUBTOTAL(109,أغسطس[الأسبوع 3])","v":0},{"$f":"SUBTOTAL(109,أغسطس[[ساعات العمل الإضافية  ]])","v":0},{"$f":"SUBTOTAL(109,أغسطس[الأسبوع 4])","v":0},{"$f":"SUBTOTAL(109,أغسطس[[ساعات العمل الإضافية   ]])","v":0},{"$f":"SUBTOTAL(109,أغسطس[الأسبوع 5])","v":0},{"$f":"SUBTOTAL(109,أغسطس[[ساعات العمل الإضافية    ]])","v":0}]
[null,"إجمالي أغسطس: ساعات العمل العادية",{"$f":"SUM(أغسطس[[#Totals],[الأسبوع 1]],أغسطس[[#Totals],[الأسبوع 2]],أغسطس[[#Totals],[الأسبوع 3]],أغسطس[[#Totals],[الأسبوع 4]],أغسطس[[#Totals],[الأسبوع 5]])","v":0},"إجمالي أغسطس: ساعات العمل الإضافية",null,{"$f":"SUM(أغسطس[[#Totals],[ساعات العمل الإضافية]],أغسطس[[#Totals],[ساعات العمل الإضافية ]],أغسطس[[#Totals],[ساعات العمل الإضافية  ]],أغسطس[[#Totals],[ساعات العمل الإضافية   ]],أغسطس[[#Totals],[ساعات العمل الإضافية    ]])","v":0}]
[]
[null,"سبتمبر","الأسبوع 1","ساعات العمل الإضافية","الأسبوع 2","ساعات العمل الإضافية ","الأسبوع 3","ساعات العمل الإضافية  ","الأسبوع 4","ساعات العمل الإضافية   ","الأسبوع 5","ساعات العمل الإضافية    "]
[null,"الاثنين"]
[null,"الثلاثاء"]
[null,"الأربعاء"]
[null,"الخميس"]
[null,"الجمعة"]
[null,"السبت"]
[null,"الأحد"]
[null,"إجمالي الساعات الأسبوعية",{"$f":"SUBTOTAL(109,سبتمبر[الأسبوع 1])","v":0},{"$f":"SUBTOTAL(109,سبتمبر[ساعات العمل الإضافية])","v":0},{"$f":"SUBTOTAL(109,سبتمبر[الأسبوع 2])","v":0},{"$f":"SUBTOTAL(109,سبتمبر[[ساعات العمل الإضافية ]])","v":0},{"$f":"SUBTOTAL(109,سبتمبر[الأسبوع 3])","v":0},{"$f":"SUBTOTAL(109,سبتمبر[[ساعات العمل الإضافية  ]])","v":0},{"$f":"SUBTOTAL(109,سبتمبر[الأسبوع 4])","v":0},{"$f":"SUBTOTAL(109,سبتمبر[[ساعات العمل الإضافية   ]])","v":0},{"$f":"SUBTOTAL(109,سبتمبر[الأسبوع 5])","v":0},{"$f":"SUBTOTAL(109,سبتمبر[[ساعات العمل الإضافية    ]])","v":0}]
[null,"إجمالي سبتمبر: ساعات العمل العادية",{"$f":"SUM(سبتمبر[[#Totals],[الأسبوع 1]],سبتمبر[[#Totals],[الأسبوع 2]],سبتمبر[[#Totals],[الأسبوع 3]],سبتمبر[[#Totals],[الأسبوع 4]],سبتمبر[[#Totals],[الأسبوع 5]])","v":0},"إجمالي سبتمبر: ساعات العمل الإضافية",null,{"$f":"SUM(سبتمبر[[#Totals],[ساعات العمل الإضافية]],سبتمبر[[#Totals],[ساعات العمل الإضافية ]],سبتمبر[[#Totals],[ساعات العمل الإضافية  ]],سبتمبر[[#Totals],[ساعات العمل الإضافية   ]],سبتمبر[[#Totals],[ساعات العمل الإضافية    ]])","v":0}]
[]
[null,"بطاقة حضور الموظف      ديسمبر وأكتوبر ونوفمبر: يومية وأسبوعية وشهرية وسنوية"]
[null,"أكتوبر","الأسبوع 1","ساعات العمل الإضافية","الأسبوع 2","ساعات العمل الإضافية ","الأسبوع 3","ساعات العمل الإضافية  ","الأسبوع 4","ساعات العمل الإضافية   ","الأسبوع 5","ساعات العمل الإضافية    "]
[null,"الاثنين"]
[null,"الثلاثاء"]
[null,"الأربعاء"]
[null,"الخميس"]
[null,"الجمعة"]
[null,"السبت"]
[null,"الأحد"]
[null,"إجمالي الساعات الأسبوعية",{"$f":"SUBTOTAL(109,أكتوبر[الأسبوع 1])","v":0},{"$f":"SUBTOTAL(109,أكتوبر[ساعات العمل الإضافية])","v":0},{"$f":"SUBTOTAL(109,أكتوبر[الأسبوع 2])","v":0},{"$f":"SUBTOTAL(109,أكتوبر[[ساعات العمل الإضافية ]])","v":0},{"$f":"SUBTOTAL(109,أكتوبر[الأسبوع 3])","v":0},{"$f":"SUBTOTAL(109,أكتوبر[[ساعات العمل الإضافية  ]])","v":0},{"$f":"SUBTOTAL(109,أكتوبر[الأسبوع 4])","v":0},{"$f":"SUBTOTAL(109,أكتوبر[[ساعات العمل الإضافية   ]])","v":0},{"$f":"SUBTOTAL(109,أكتوبر[الأسبوع 5])","v":0},{"$f":"SUBTOTAL(109,أكتوبر[[ساعات العمل الإضافية    ]])","v":0}]
[null,"إجمالي أكتوبر: ساعات العمل العادية",{"$f":"SUM(أكتوبر[[#Totals],[الأسبوع 1]],أكتوبر[[#Totals],[الأسبوع 2]],أكتوبر[[#Totals],[الأسبوع 3]],أكتوبر[[#Totals],[الأسبوع 4]],أكتوبر[[#Totals],[الأسبوع 5]])","v":0},"إجمالي أكتوبر: ساعات العمل الإضافية",null,{"$f":"SUM(أكتوبر[[#Totals],[ساعات العمل الإضافية]],أكتوبر[[#Totals],[ساعات العمل الإضافية ]],أكتوبر[[#Totals],[ساعات العمل الإضافية  ]],أكتوبر[[#Totals],[ساعات العمل الإضافية   ]],أكتوبر[[#Totals],[ساعات العمل الإضافية    ]])","v":0}]
[]
[null,"نوفمبر","الأسبوع 1","ساعات العمل الإضافية","الأسبوع 2","ساعات العمل الإضافية ","الأسبوع 3","ساعات العمل الإضافية  ","الأسبوع 4","ساعات العمل الإضافية   ","الأسبوع 5","ساعات العمل الإضافية    "]
[null,"الاثنين"]
[null,"الثلاثاء"]
[null,"الأربعاء"]
[null,"الخميس"]
[null,"الجمعة"]
[null,"السبت"]
[null,"الأحد"]
[null,"إجمالي الساعات الأسبوعية",{"$f":"SUBTOTAL(109,نوفمبر[الأسبوع 1])","v":0},{"$f":"SUBTOTAL(109,نوفمبر[ساعات العمل الإضافية])","v":0},{"$f":"SUBTOTAL(109,نوفمبر[الأسبوع 2])","v":0},{"$f":"SUBTOTAL(109,نوفمبر[[ساعات العمل الإضافية ]])","v":0},{"$f":"SUBTOTAL(109,نوفمبر[الأسبوع 3])","v":0},{"$f":"SUBTOTAL(109,نوفمبر[[ساعات العمل الإضافية  ]])","v":0},{"$f":"SUBTOTAL(109,نوفمبر[الأسبوع 4])","v":0},{"$f":"SUBTOTAL(109,نوفمبر[[ساعات العمل الإضافية   ]])","v":0},{"$f":"SUBTOTAL(109,نوفمبر[الأسبوع 5])","v":0},{"$f":"SUBTOTAL(109,نوفمبر[[ساعات العمل الإضافية    ]])","v":0}]
[null,"إجمالي نوفمبر: ساعات العمل العادية",{"$f":"SUM(نوفمبر[[#Totals],[الأسبوع 1]],نوفمبر[[#Totals],[الأسبوع 2]],نوفمبر[[#Totals],[الأسبوع 3]],نوفمبر[[#Totals],[الأسبوع 4]],نوفمبر[[#Totals],[الأسبوع 5]])","v":0},"إجمالي نوفمبر: ساعات العمل الإضافية",null,{"$f":"SUM(نوفمبر[[#Totals],[ساعات العمل الإضافية]],نوفمبر[[#Totals],[ساعات العمل الإضافية ]],نوفمبر[[#Totals],[ساعات العمل الإضافية  ]],نوفمبر[[#Totals],[ساعات العمل الإضافية   ]],نوفمبر[[#Totals],[ساعات العمل الإضافية    ]])","v":0}]
[]
[null,"ديسمبر","الأسبوع 1","ساعات العمل الإضافية","الأسبوع 2","ساعات العمل الإضافية ","الأسبوع 3","ساعات العمل الإضافية  ","الأسبوع 4","ساعات العمل الإضافية   ","الأسبوع 5","ساعات العمل الإضافية    "]
[null,"الاثنين"]
[null,"الثلاثاء"]
[null,"الأربعاء"]
[null,"الخميس"]
[null,"الجمعة"]
[null,"السبت"]
[null,"الأحد"]
[null,"إجمالي الساعات الأسبوعية",{"$f":"SUBTOTAL(109,ديسمبر[الأسبوع 1])","v":0},{"$f":"SUBTOTAL(109,ديسمبر[ساعات العمل الإضافية])","v":0},{"$f":"SUBTOTAL(109,ديسمبر[الأسبوع 2])","v":0},{"$f":"SUBTOTAL(109,ديسمبر[[ساعات العمل الإضافية ]])","v":0},{"$f":"SUBTOTAL(109,ديسمبر[الأسبوع 3])","v":0},{"$f":"SUBTOTAL(109,ديسمبر[[ساعات العمل الإضافية  ]])","v":0},{"$f":"SUBTOTAL(109,ديسمبر[الأسبوع 4])","v":0},{"$f":"SUBTOTAL(109,ديسمبر[[ساعات العمل الإضافية   ]])","v":0},{"$f":"SUBTOTAL(109,ديسمبر[الأسبوع 5])","v":0},{"$f":"SUBTOTAL(109,ديسمبر[[ساعات العمل الإضافية    ]])","v":0}]
[null,"إجمالي ديسمبر: ساعات العمل العادية",{"$f":"SUM(ديسمبر[[#Totals],[الأسبوع 1]],ديسمبر[[#Totals],[الأسبوع 2]],ديسمبر[[#Totals],[الأسبوع 3]],ديسمبر[[#Totals],[الأسبوع 4]],ديسمبر[[#Totals],[الأسبوع 5]])","v":0},"إجمالي ديسمبر: ساعات العمل الإضافية",null,{"$f":"SUM(ديسمبر[[#Totals],[ساعات العمل الإضافية]],ديسمبر[[#Totals],[ساعات العمل الإضافية ]],ديسمبر[[#Totals],[ساعات العمل الإضافية  ]],ديسمبر[[#Totals],[ساعات العمل الإضافية   ]],ديسمبر[[#Totals],[ساعات العمل الإضافية    ]])","v":0}]